Workbook

Sheet Лист1
A1: Школа | C1: МАОУ СОШ № 15 | F1: Согл: | G1: должность | H1: директор
A2: Типовое примерное меню приготавливаемых блюд | G2: фамилия | H2: Г.П. Логинова
A3: Возрастная категория | E3: 7-11 лет | G3: дата | H3: 1 | I3: 3 | J3: 2025
H4: день | I4: месяц | J4: год
A5: Неделя | B5: День недели | C5: Прием пищи | D5: Раздел меню | E5: Блюда | F5: Вес блюда, г | G5: Белки | H5: Жиры | I5: Углеводы | J5: Калорийность | K5: № рецептуры | L5: Цена
A6: 1 | B6: 1 | C6: Завтрак | D6: гор.блюдо | E6: Каша рисовая молочная вязкая с маслом сливочным | F6: 260 | G6: 7.2 | H6: 10 | I6: 50.1 | J6: 321 | K6: 500
D7: закуска | E7: Яйцо вареное | F7: 40 | G7: 5.08 | H7: 4.6 | I7: 0.28 | J7: 63 | K7: 803
D8: гор.напиток | E8: Чай с сахаром | F8: 200 | G8: 0.1 | H8: 0 | I8: 9.1 | J8: 35 | K8: 400
D9: хлеб черн. | E9: Хлеб ржаной | F9: 20 | G9: 1.66 | H9: 0.3 | I9: 9.6 | J9: 54.3 | K9: б/н
D10: закуска | E10: Бутерброд с маслом и сыром | F10: 60 | G10: 7.88 | H10: 9.94 | I10: 20.74 | J10: 207.43 | K10: 800
D14: итого | F14: =SUM(F6:F13) -> 580 | G14: =SUM(G6:G13) -> 21.92 | H14: =SUM(H6:H13) -> 24.84 | I14: =SUM(I6:I13) -> 89.82 | J14: =SUM(J6:J13) -> 680.73 | L14: =SUM(L6:L13) -> 0
A15: =A6 -> 1 | B15: =B6 -> 1 | C15: Обед | D15: закуска | E15: Салат из свеклы "Бурячок" | F15: 100 | G15: 1.05 | H15: 15.07 | I15: 5.77 | J15: 103 | K15: 709
D16: 1 блюдо | E16: Суп картофельный с бобовыми | F16: 200 | G16: 7.08 | H16: 5.41 | I16: 16.52 | J16: 139.7 | K16: 100
D17: 2 блюдо | E17: Омлет натуральный с маслом | F17: 157 | G17: 15.7 | H17: 26.2 | I17: 2.98 | J17: 312.43 | K17: 200
D18: напиток | E18: Компот из изюма | F18: 200 | G18: 0.01 | H18: 0 | I18: 24.2 | J18: 93 | K18: 401
D19: хлеб бел. | E19: Хлеб пшеничный | F19: 40 | G19: 5.08 | H19: 0.8 | I19: 22.16 | J19: 120.6 | K19: б/н
D20: хлеб черн. | E20: Хлеб ржаной | F20: 20 | G20: 1.66 | H20: 0.3 | I20: 9.6 | J20: 54.3 | K20: б/н
D24: итого | F24: =SUM(F15:F23) -> 717 | G24: =SUM(G15:G23) -> 30.58 | H24: =SUM(H15:H23) -> 47.78 | I24: =SUM(I15:I23) -> 81.23 | J24: =SUM(J15:J23) -> 823.03 | L24: =SUM(L15:L23) -> 0
A25: =A6 -> 1 | B25: =B6 -> 1 | C25: Итого за день: | F25: =F14+F24 -> 1297 | G25: =G14+G24 -> 52.5 | H25: =H14+H24 -> 72.62 | I25: =I14+I24 -> 171.05 | J25: =J14+J24 -> 1503.76 | L25: =L14+L24 -> 0
A26: 1 | B26: 2 | C26: Завтрак | D26: гор.блюдо | E26: Жаркое по-домашнему | F26: 260 | G26: 23.11 | H26: 13.8 | I26: 23.51 | J26: 303.67 | K26: 227
D27: гор.напиток | E27: Компот из свежих фруктов | F27: 200 | G27: 0.2 | H27: 0 | I27: 35.8 | J27: 142 | K27: 406
D28: хлеб бел. | E28: Хлеб пшеничный | F28: 20 | G28: 2.54 | H28: 0.4 | I28: 11.08 | J28: 60.3 | K28: б/н
D29: хлеб черн. | E29: Хлеб ржаной | F29: 20 | G29: 1.66 | H29: 0.3 | I29: 9.6 | J29: 54.3 | K29: б/н
D30: сладкое | E30: Кондитерское изделие | F30: 35 | G30: 5.1 | H30: 4.6 | I30: 0.3 | J30: 63 | K30: б/н
D33: итого | F33: =SUM(F26:F32) -> 535 | G33: =SUM(G26:G32) -> 32.61 | H33: =SUM(H26:H32) -> 19.1 | I33: =SUM(I26:I32) -> 80.29 | J33: =SUM(J26:J32) -> 623.27 | L33: =SUM(L26:L32) -> 0
A34: =A26 -> 1 | B34: =B26 -> 2 | C34: Обед | D34: закуска | E34: Винегрет овощной | F34: 60 | G34: 0.8 | H34: 1.4 | I34: 4.3 | J34: 33 | K34: 700
D35: 1 блюдо | E35: Щи из свежей капусты с мясом птицы и сметаной | F35: 228 | G35: 1.4 | H35: 4.5 | I35: 6.8 | J35: 94.6 | K35: 101
D36: 2 блюдо | E36: Котлеты, биточки, шницели | F36: 90 | G36: 9.18 | H36: 10.53 | I36: 7.38 | J36: 161.1 | K36: 221
D37: гарнир | E37: Макаронные изделия отварные | F37: 150 | G37: 5.1 | H37: 9.15 | I37: 34.2 | J37: 244.5 | K37: 300
D38: напиток | E38: Кисель витаминизированный из концентрата "Витошка" | F38: 200 | G38: 0.24 | H38: 0.144 | I38: 30.42 | J38: 116.86 | K38: 403
D39: хлеб бел. | E39: Хлеб пшеничный | F39: 20 | G39: 2.54 | H39: 0.4 | I39: 11.08 | J39: 60.3 | K39: б/н
D40: хлеб черн. | E40: Хлеб ржаной | F40: 20 | G40: 1.66 | H40: 0.3 | I40: 9.6 | J40: 54.3 | K40: б/н
D43: итого | F43: =SUM(F34:F42) -> 768 | G43: =SUM(G34:G42) -> 20.92 | H43: =SUM(H34:H42) -> 26.424 | I43: =SUM(I34:I42) -> 103.78 | J43: =SUM(J34:J42) -> 764.66 | L43: =SUM(L34:L42) -> 0
A44: =A26 -> 1 | B44: =B26 -> 2 | C44: Итого за день: | F44: =F33+F43 -> 1303 | G44: =G33+G43 -> 53.53 | H44: =H33+H43 -> 45.524 | I44: =I33+I43 -> 184.07 | J44: =J33+J43 -> 1387.93 | L44: =L33+L43 -> 0
A45: 1 | B45: 3 | C45: Завтрак | D45: гор.блюдо | E45: Плов из курицы | F45: 270 | G45: 22.5 | H45: 34.2 | I45: 47.2 | J45: 528.12 | K45: 228
D46: гор.напиток | E46: Кофейный напиток с молоком | F46: 200 | G46: 3.78 | H46: 25.77 | I46: 25.77 | J46: 149.32 | K46: 404
D47: хлеб бел. | E47: Хлеб пшеничный | F47: 40 | G47: 5.08 | H47: 0.8 | I47: 22.16 | J47: 120.6 | K47: б/н
D48: хлеб черн. | E48: Хлеб ржаной | F48: 40 | G48: 3.32 | H48: 0.6 | I48: 19.2 | J48: 108.6 | K48: б/н
D49: фрукты | E49: Фрукт | F49: 100 | G49: 0.4 | H49: 0 | I49: 9.6 | J49: 40 | K49: б/н
D52: итого | F52: =SUM(F45:F51) -> 650 | G52: =SUM(G45:G51) -> 35.08 | H52: =SUM(H45:H51) -> 61.37 | I52: =SUM(I45:I51) -> 123.93 | J52: =SUM(J45:J51) -> 946.64 | L52: =SUM(L45:L51) -> 0
A53: =A45 -> 1 | B53: =B45 -> 3 | C53: Обед | D53: кисломол. | E53: Кисломолочная пищевая продукция | F53: 100 | G53: 2.8 | H53: 2.4 | I53: 15 | J53: 92 | K53: б/н
D54: 1 блюдо | E54: Борщ из свежей капусты с картофелем | F54: 200 | G54: 1.22 | H54: 3.56 | I54: 8.17 | J54: 84.3 | K54: 102
D55: 2 блюдо | E55: Запеканка картофельная с мясом куры | F55: 200 | G55: 18.65 | H55: 21.2 | I55: 21.57 | J55: 352.81 | K55: 203
D56: напиток | E56: Чай с сахаром | F56: 200 | G56: 1.4 | H56: 1.1 | I56: 11.3 | J56: 59 | K56: 410
D57: хлеб бел. | E57: Хлеб пшеничный | F57: 40 | G57: 5.08 | H57: 0.8 | I57: 22.16 | J57: 120.6 | K57: б/н
D58: хлеб черн. | E58: Хлеб ржаной | F58: 20 | G58: 1.66 | H58: 0.3 | I58: 9.6 | J58: 54.3 | K58: б/н
D62: итого | F62: =SUM(F53:F61) -> 760 | G62: =SUM(G53:G61) -> 30.81 | H62: =SUM(H53:H61) -> 29.36 | I62: =SUM(I53:I61) -> 87.8 | J62: =SUM(J53:J61) -> 763.01 | L62: =SUM(L53:L61) -> 0
A63: =A45 -> 1 | B63: =B45 -> 3 | C63: Итого за день: | F63: =F52+F62 -> 1410 | G63: =G52+G62 -> 65.89 | H63: =H52+H62 -> 90.73 | I63: =I52+I62 -> 211.73 | J63: =J52+J62 -> 1709.65 | L63: =L52+L62 -> 0
A64: 1 | B64: 4 | C64: Завтрак | D64: гор.блюдо | E64: Суфле из мяса кур с рисом | F64: 100 | G64: 14.12 | H64: 21.89 | I64: 1.14 | J64: 293.4 | K64: 204
D65: гор.блюдо | E65: Каша гречневая рассыпчатая | F65: 150 | G65: 8.7 | H65: 7.8 | I65: 42.6 | J65: 279 | K65: 301
D66: гор.напиток | E66: Чай с сахаром | F66: 200 | G66: 1.4 | H66: 1.1 | I66: 11.3 | J66: 59 | K66: 410
D67: хлеб бел. | E67: Хлеб пшеничный | F67: 40 | G67: 5.08 | H67: 0.8 | I67: 22.16 | J67: 120.6 | K67: б/н
D68: хлеб черн. | E68: Хлеб ржаной | F68: 20 | G68: 1.66 | H68: 0.3 | I68: 9.6 | J68: 54.3 | K68: б/н
D71: итого | F71: =SUM(F64:F70) -> 510 | G71: =SUM(G64:G70) -> 30.96 | H71: =SUM(H64:H70) -> 31.89 | I71: =SUM(I64:I70) -> 86.8 | J71: =SUM(J64:J70) -> 806.3 | L71: =SUM(L64:L70) -> 0
A72: =A64 -> 1 | B72: =B64 -> 4 | C72: Обед | D72: закуска | E72: Салат из свеклы с сыром | F72: 60 | G72: 3.24 | H72: 8.52 | I72: 4.51 | J72: 80 | K72: 707
D73: 1 блюдо | E73: Суп картофельный с крупой | F73: 220 | G73: 2.1 | H73: 2.1 | I73: 15.5 | J73: 111.6 | K73: 103
D74: 2 блюдо | E74: Зразы "Верх-Исетские"+Соус сметанный | F74: 120 | G74: 26.59 | H74: 19.97 | I74: 8 | J74: 318.33 | K74: 217/600
D75: гарнир | E75: Картофель в молоке | F75: 150 | G75: 3 | H75: 3.15 | I75: 24.3 | J75: 166.5 | K75: 302
D76: напиток | E76: Компот из сухофруктов | F76: 200 | G76: 0.9 | H76: 0.05 | I76: 20.6 | J76: 89 | K76: 402
D77: хлеб бел. | E77: Хлеб пшеничный | F77: 20 | G77: 2.54 | H77: 0.4 | I77: 11.08 | J77: 60.3 | K77: б/н
D78: хлеб черн. | E78: Хлеб ржаной | F78: 20 | G78: 1.66 | H78: 0.3 | I78: 9.6 | J78: 54.3 | K78: б/н
D81: итого | F81: =SUM(F72:F80) -> 790 | G81: =SUM(G72:G80) -> 40.03 | H81: =SUM(H72:H80) -> 34.49 | I81: =SUM(I72:I80) -> 93.59 | J81: =SUM(J72:J80) -> 880.03 | L81: =SUM(L72:L80) -> 0
A82: =A64 -> 1 | B82: =B64 -> 4 | C82: Итого за день: | F82: =F71+F81 -> 1300 | G82: =G71+G81 -> 70.99 | H82: =H71+H81 -> 66.38 | I82: =I71+I81 -> 180.39 | J82: =J71+J81 -> 1686.33 | L82: =L71+L81 -> 0
A83: 1 | B83: 5 | C83: Завтрак | D83: гор.блюдо | E83: Тефтели мясные с соусом томатным | F83: 110 | G83: 10.8 | H83: 16.7 | I83: 13.4 | J83: 248 | K83: 206
D84: гор.блюдо | E84: Макаронные изделия отварные | F84: 150 | G84: 5.1 | H84: 9.15 | I84: 34.2 | J84: 244.5 | K84: 300
D85: гор.напиток | E85: Чай с сахаром | F85: 200 | G85: 0.2 | H85: 0 | I85: 15 | J85: 58 | K85: 400
D86: хлеб бел. | E86: Хлеб пшеничный | F86: 20 | G86: 2.54 | H86: 0.4 | I86: 11.08 | J86: 60.3 | K86: б/н
D87: хлеб черн. | E87: Хлеб ржаной | F87: 20 | G87: 1.66 | H87: 0.3 | I87: 9.6 | J87: 54.3 | K87: б/н
D90: итого | F90: =SUM(F83:F89) -> 500 | G90: =SUM(G83:G89) -> 20.3 | H90: =SUM(H83:H89) -> 26.55 | I90: =SUM(I83:I89) -> 83.28 | J90: =SUM(J83:J89) -> 665.1 | L90: =SUM(L83:L89) -> 0
A91: =A83 -> 1 | B91: =B83 -> 5 | C91: Обед | D91: закуска | E91: Салат из моркови с яблоком и курагой | F91: 60 | G91: 0.5 | H91: 2.1 | I91: 5 | J91: 40 | K91: 708
D92: 1 блюдо | E92: Рассольник ленинградский | F92: 250 | G92: 1.87 | H92: 4.64 | I92: 13.75 | J92: 125.53 | K92: 104
D93: 2 блюдо | E93: Рулет с луком и яйцом | F93: 90 | G93: 11.52 | H93: 9.54 | I93: 9.27 | J93: 171 | K93: 207
D94: гарнир | E94: Капуста тушеная свежая | F94: 150 | G94: 2.85 | H94: 9.3 | I94: 7.95 | J94: 201 | K94: 303
D95: напиток | E95: Компот из смеси сухофруктов | F95: 200 | G95: 0.22 | H95: 0.02 | I95: 22.21 | J95: 86.05 | K95: 402
D96: хлеб бел. | E96: Хлеб пшеничный | F96: 20 | G96: 2.54 | H96: 0.4 | I96: 11.08 | J96: 60.3 | K96: б/н
D97: хлеб черн. | E97: Хлеб ржаной | F97: 20 | G97: 1.66 | H97: 0.3 | I97: 9.6 | J97: 54.3 | K97: б/н
D100: итого | F100: =SUM(F91:F99) -> 790 | G100: =SUM(G91:G99) -> 21.16 | H100: =SUM(H91:H99) -> 26.3 | I100: =SUM(I91:I99) -> 78.86 | J100: =SUM(J91:J99) -> 738.18 | L100: =SUM(L91:L99) -> 0
A101: =A83 -> 1 | B101: =B83 -> 5 | C101: Итого за день: | F101: =F90+F100 -> 1290 | G101: =G90+G100 -> 41.46 | H101: =H90+H100 -> 52.85 | I101: =I90+I100 -> 162.14 | J101: =J90+J100 -> 1403.28 | L101: =L90+L100 -> 0
A102: 2 | B102: 1 | C102: Завтрак | D102: гор.блюдо | E102: Каша пшенная молочная | F102: 250 | G102: 9.1 | H102: 11.1 | I102: 42.6 | J102: 307 | K102: 502
D103: гор.напиток | E103: Чай с сахаром | F103: 200 | G103: 0.2 | H103: 0 | I103: 15 | J103: 58 | K103: 400
D104: хлеб черн. | E104: Хлеб ржаной | F104: 20 | G104: 1.66 | H104: 0.3 | I104: 9.6 | J104: 54.3 | K104: б/н
D105: закуска | E105: Бутерброд с маслом и сыром | F105: 60 | G105: 7.88 | H105: 9.94 | I105: 20.74 | J105: 207.43 | K105: 800
D110: итого | F110: =SUM(F102:F109) -> 530 | G110: =SUM(G102:G109) -> 18.84 | H110: =SUM(H102:H109) -> 21.34 | I110: =SUM(I102:I109) -> 87.94 | J110: =SUM(J102:J109) -> 626.73 | L110: =SUM(L102:L109) -> 0
A111: =A102 -> 2 | B111: =B102 -> 1 | C111: Обед | D111: сладкое | E111: Кондитерское изделие | F111: 45 | G111: 9.18 | H111: 8.28 | I111: 0.54 | J111: 113.4 | K111: б/н
D112: 1 блюдо | E112: Суп крестьянский с крупой | F112: 260 | G112: 2.85 | H112: 7.3 | I112: 14.62 | J112: 136.3 | K112: 105
D113: 2 блюдо | E113: Котлета "Детская" из мяса кур | F113: 90 | G113: 15.05 | H113: 8.77 | I113: 10.35 | J113: 180 | K113: 208
D114: гарнир | E114: Рис с овощами | F114: 150 | G114: 4.55 | H114: 6.95 | I114: 45.74 | J114: 264.6 | K114: 304
D115: напиток | E115: Компот из изюма | F115: 200 | G115: 0.01 | H115: 0 | I115: 24.2 | J115: 93 | K115: 401
D116: хлеб бел. | E116: Хлеб пшеничный | F116: 20 | G116: 2.54 | H116: 0.4 | I116: 11.08 | J116: 60.3 | K116: б/н
D117: хлеб черн. | E117: Хлеб ржаной | F117: 20 | G117: 1.66 | H117: 0.3 | I117: 9.6 | J117: 54.3 | K117: б/н
D120: итого | F120: =SUM(F111:F119) -> 785 | G120: =SUM(G111:G119) -> 35.84 | H120: =SUM(H111:H119) -> 32 | I120: =SUM(I111:I119) -> 116.13 | J120: =SUM(J111:J119) -> 901.9 | L120: =SUM(L111:L119) -> 0
A121: =A102 -> 2 | B121: =B102 -> 1 | C121: Итого за день: | F121: =F110+F120 -> 1315 | G121: =G110+G120 -> 54.68 | H121: =H110+H120 -> 53.34 | I121: =I110+I120 -> 204.07 | J121: =J110+J120 -> 1528.63 | L121: =L110+L120 -> 0
A122: 2 | B122: 2 | C122: Завтрак | D122: гор.блюдо | E122: Котлета "Дружба" с соусом молочным | F122: 110 | G122: 15.72 | H122: 19.48 | I122: 3.14 | J122: 251 | K122: 209
D123: гор.блюдо | E123: Пюре картофельное | F123: 150 | G123: 3.08 | H123: 4.92 | I123: 20 | J123: 138.33 | K123: 305
D124: гор.напиток | E124: Какао с молоком | F124: 200 | G124: 3.78 | H124: 25.77 | I124: 25.77 | J124: 149.32 | K124: 405
D125: хлеб бел. | E125: Хлеб пшеничный | F125: 20 | G125: 2.54 | H125: 0.4 | I125: 11.08 | J125: 60.3 | K125: б/н
D126: хлеб черн. | E126: Хлеб ржаной | F126: 20 | G126: 1.66 | H126: 0.3 | I126: 9.6 | J126: 54.3 | K126: б/н
D129: итого | F129: =SUM(F122:F128) -> 500 | G129: =SUM(G122:G128) -> 26.78 | H129: =SUM(H122:H128) -> 50.87 | I129: =SUM(I122:I128) -> 69.59 | J129: =SUM(J122:J128) -> 653.25 | L129: =SUM(L122:L128) -> 0
A130: =A122 -> 2 | B130: =B122 -> 2 | C130: Обед | D130: кисломол. | E130: Кисломолочная продукция | F130: 100 | G130: 2.8 | H130: 2.4 | I130: 15 | J130: 92 | K130: б/н
D131: 1 блюдо | E131: Суп картофельный с мясными фрикадельками | F131: 250 | G131: 5.85 | H131: 4.52 | I131: 13.92 | J131: 121.85 | K131: 107
D132: 2 блюдо | E132: Запеканка творожная | F132: 150 | G132: 11.96 | H132: 9.22 | I132: 20.26 | J132: 379.25 | K132: 210
D133: напиток | E133: Кисель витаминизированный из концентрата "Витошка" | F133: 200 | G133: 0.24 | H133: 0.144 | I133: 30.42 | J133: 116.86 | K133: 403
D134: хлеб бел. | E134: Хлеб пшеничный | F134: 20 | G134: 2.54 | H134: 0.4 | I134: 11.08 | J134: 60.3 | K134: б/н
D135: хлеб черн. | E135: Хлеб ржаной | F135: 20 | G135: 1.66 | H135: 0.3 | I135: 9.6 | J135: 54.3 | K135: б/н
D139: итого | F139: =SUM(F130:F138) -> 740 | G139: =SUM(G130:G138) -> 25.05 | H139: =SUM(H130:H138) -> 16.984 | I139: =SUM(I130:I138) -> 100.28 | J139: =SUM(J130:J138) -> 824.56 | L139: =SUM(L130:L138) -> 0
A140: =A122 -> 2 | B140: =B122 -> 2 | C140: Итого за день: | F140: =F129+F139 -> 1240 | G140: =G129+G139 -> 51.83 | H140: =H129+H139 -> 67.854 | I140: =I129+I139 -> 169.87 | J140: =J129+J139 -> 1477.81 | L140: =L129+L139 -> 0
A141: 2 | B141: 3 | C141: Завтрак | D141: гор.блюдо | E141: Птица отварная | F141: 90 | G141: 14.4 | H141: 10.75 | I141: 0.37 | J141: 125.57 | K141: 211
D142: гор.блюдо | E142: Каша рисовая рассыпчатая | F142: 150 | G142: 6.6 | H142: 4.9 | I142: 37.1 | J142: 223 | K142: 306
D143: гор.напиток | E143: Чай с сахаром | F143: 200 | G143: 0.2 | H143: 0.051 | I143: 15.07 | J143: 26.85 | K143: 411
D144: хлеб бел. | E144: Хлеб пшеничный | F144: 20 | G144: 2.54 | H144: 0.4 | I144: 11.08 | J144: 60.3 | K144: б/н
D145: хлеб черн. | E145: Хлеб ржаной | F145: 20 | G145: 1.66 | H145: 0.3 | I145: 9.6 | J145: 54.3 | K145: б/н
D146: кисломол. | E146: Кисломолочная пищевая продукция | F146: 100 | G146: 2.8 | H146: 2.4 | I146: 15 | J146: 92 | K146: б/н
D148: итого | F148: =SUM(F141:F147) -> 580 | G148: =SUM(G141:G147) -> 28.2 | H148: =SUM(H141:H147) -> 18.801 | I148: =SUM(I141:I147) -> 88.22 | J148: =SUM(J141:J147) -> 582.02 | L148: =SUM(L141:L147) -> 0
A149: =A141 -> 2 | B149: =B141 -> 3 | C149: Обед | D149: закуска | E149: Икра овощная | F149: 60 | G149: 1.1 | H149: 4.3 | I149: 5.6 | J149: 65 | K149: 705
D150: 1 блюдо | E150: Суп картофельный с рыбными консервами | F150: 250 | G150: 6.81 | H150: 8.19 | I150: 18.98 | J150: 112.5 | K150: 108
D151: 2 блюдо | E151: Суфле из мяса кур с рисом | F151: 90 | G151: 12.71 | H151: 19.7 | I151: 1.03 | J151: 232.36 | K151: 204
D152: гарнир | E152: Макаронные изделия отварные | F152: 150 | G152: 5.1 | H152: 9.15 | I152: 34.2 | J152: 244.5 | K152: 300
D153: напиток | E153: Компот из свежих фруктов | F153: 200 | G153: 0.2 | H153: 0 | I153: 35.8 | J153: 142 | K153: 406
D154: хлеб бел. | E154: Хлеб пшеничный | F154: 20 | G154: 2.54 | H154: 0.4 | I154: 11.08 | J154: 60.3 | K154: б/н
D155: хлеб черн. | E155: Хлеб ржаной | F155: 20 | G155: 1.66 | H155: 0.3 | I155: 9.6 | J155: 54.3 | K155: б/н
D158: итого | F158: =SUM(F149:F157) -> 790 | G158: =SUM(G149:G157) -> 30.12 | H158: =SUM(H149:H157) -> 42.04 | I158: =SUM(I149:I157) -> 116.29 | J158: =SUM(J149:J157) -> 910.96 | L158: =SUM(L149:L157) -> 0
A159: =A141 -> 2 | B159: =B141 -> 3 | C159: Итого за день: | F159: =F148+F158 -> 1370 | G159: =G148+G158 -> 58.32 | H159: =H148+H158 -> 60.841 | I159: =I148+I158 -> 204.51 | J159: =J148+J158 -> 1492.98 | L159: =L148+L158 -> 0
A160: 2 | B160: 4 | C160: Завтрак | D160: гор.блюдо | E160: Творожный пудинг яблочный (запеченный) | F160: 260 | G160: 12.84 | H160: 21.55 | I160: 56.52 | J160: 517.1 | K160: 212
D161: гор.напиток | E161: Чай с сахаром | F161: 200 | G161: 0.2 | H161: 0 | I161: 15 | J161: 58 | K161: 400
D162: хлеб бел. | E162: Хлеб пшеничный | F162: 20 | G162: 2.54 | H162: 0.4 | I162: 11.08 | J162: 60.3 | K162: б/н
D163: хлеб черн. | E163: Хлеб ржаной | F163: 20 | G163: 1.66 | H163: 0.3 | I163: 9.6 | J163: 54.3 | K163: б/н
D167: итого | F167: =SUM(F160:F166) -> 500 | G167: =SUM(G160:G166) -> 17.24 | H167: =SUM(H160:H166) -> 22.25 | I167: =SUM(I160:I166) -> 92.2 | J167: =SUM(J160:J166) -> 689.7 | L167: =SUM(L160:L166) -> 0
A168: =A160 -> 2 | B168: =B160 -> 4 | C168: Обед | D168: закуска | E168: Салат из моркови с яблоком и курагой | F168: 60 | G168: 0.5 | H168: 2.1 | I168: 5 | J168: 40 | K168: 708
D169: 1 блюдо | E169: Рассольник ленинградский | F169: 280 | G169: 2.09 | H169: 5.16 | I169: 15.1 | J169: 144.42 | K169: 112
D170: 2 блюдо | E170: Суфле из печени с рисом | F170: 120 | G170: 28.56 | H170: 9 | I170: 5.76 | J170: 223.2 | K170: 222
D171: гарнир | E171: Картофель в молоке | F171: 180 | G171: 3.6 | H171: 7.38 | I171: 29.16 | J171: 199.8 | K171: 302
D172: напиток | E172: Напиток из кураги | F172: 200 | G172: 0.01 | H172: 0 | I172: 24.2 | J172: 93 | K172: 407
D173: хлеб бел. | E173: Хлеб пшеничный | F173: 20 | G173: 2.54 | H173: 0.4 | I173: 11.08 | J173: 60.3 | K173: б/н
D174: хлеб черн. | E174: Хлеб ржаной | F174: 20 | G174: 1.66 | H174: 0.3 | I174: 9.6 | J174: 54.3 | K174: б/н
D177: итого | F177: =SUM(F168:F176) -> 880 | G177: =SUM(G168:G176) -> 38.96 | H177: =SUM(H168:H176) -> 24.34 | I177: =SUM(I168:I176) -> 99.9 | J177: =SUM(J168:J176) -> 815.02 | L177: =SUM(L168:L176) -> 0
A178: =A160 -> 2 | B178: =B160 -> 4 | C178: Итого за день: | F178: =F167+F177 -> 1380 | G178: =G167+G177 -> 56.2 | H178: =H167+H177 -> 46.59 | I178: =I167+I177 -> 192.1 | J178: =J167+J177 -> 1504.72 | L178: =L167+L177 -> 0
A179: 2 | B179: 5 | C179: Завтрак | D179: гор.блюдо | E179: Котлеты рубленные из птицы с соусом молочным | F179: 110 | G179: 15 | H179: 21.4 | I179: 15.5 | J179: 316 | K179: 213
D180: гор.блюдо | E180: Макаронные изделия отварные | F180: 150 | G180: 5.1 | H180: 9.15 | I180: 34.2 | J180: 244.5 | K180: 300
D181: гор.напиток | E181: Чай с сахаром | F181: 200 | G181: 1.4 | H181: 1.1 | I181: 11.3 | J181: 59 | K181: 410
D182: хлеб бел. | E182: Хлеб пшеничный | F182: 20 | G182: 2.54 | H182: 0.4 | I182: 11.08 | J182: 60.3 | K182: б/н
D183: хлеб черн. | E183: Хлеб ржаной | F183: 20 | G183: 1.66 | H183: 0.3 | I183: 9.6 | J183: 54.3 | K183: б/н
D184: фрукты | E184: Фрукт или сок (порционно) | F184: 100 | G184: 0.4 | H184: 0 | I184: 9.6 | J184: 40 | K184: б/н
D186: итого | F186: =SUM(F179:F185) -> 600 | G186: =SUM(G179:G185) -> 26.1 | H186: =SUM(H179:H185) -> 32.35 | I186: =SUM(I179:I185) -> 91.28 | J186: =SUM(J179:J185) -> 774.1 | L186: =SUM(L179:L185) -> 0
A187: =A179 -> 2 | B187: =B179 -> 5 | C187: Обед | D187: закуска | E187: Салат из свеклы с сыром | F187: 60 | G187: 3.24 | H187: 8.52 | I187: 4.51 | J187: 80 | K187: 707
D188: 1 блюдо | E188: Щи из свежей капусты с мясом птицы и сметаной | F188: 228 | G188: 1.4 | H188: 4.5 | I188: 6.8 | J188: 94.6 | K188: 101
D189: 2 блюдо | E189: Фрикадельки мясные с соусом | F189: 110 | G189: 11.3 | H189: 9.3 | I189: 8.2 | J189: 162 | K189: 214
D190: гарнир | E190: Каша гречневая рассыпчатая | F190: 150 | G190: 8.7 | H190: 7.8 | I190: 42.6 | J190: 279 | K190: 301
D191: напиток | E191: Компот из изюма | F191: 200 | G191: 0.01 | H191: 0 | I191: 24.2 | J191: 93 | K191: 401
D192: хлеб бел. | E192: Хлеб пшеничный | F192: 20 | G192: 2.54 | H192: 0.4 | I192: 11.08 | J192: 60.3 | K192: б/н
D193: хлеб черн. | E193: Хлеб ржаной | F193: 20 | G193: 1.66 | H193: 0.3 | I193: 9.6 | J193: 54.3 | K193: б/н
D196: итого | F196: =SUM(F187:F195) -> 788 | G196: =SUM(G187:G195) -> 28.85 | H196: =SUM(H187:H195) -> 30.82 | I196: =SUM(I187:I195) -> 106.99 | J196: =SUM(J187:J195) -> 823.2 | L196: =SUM(L187:L195) -> 0
A197: =A179 -> 2 | B197: =B179 -> 5 | C197: Итого за день: | F197: =F186+F196 -> 1388 | G197: =G186+G196 -> 54.95 | H197: =H186+H196 -> 63.17 | I197: =I186+I196 -> 198.27 | J197: =J186+J196 -> 1597.3 | L197: =L186+L196 -> 0
A198: 3 | B198: 1 | C198: Завтрак | D198: гор.блюдо | E198: Каша "Дружба" | F198: 257 | G198: 7.38 | H198: 10.66 | I198: 41.06 | J198: 290.52 | K198: 501
D199: гор.напиток | E199: Чай сахаром | F199: 200 | G199: 0.27 | H199: 0.059 | I199: 15.26 | J199: 59.49 | K199: 415
D200: хлеб черн. | E200: Хлеб ржаной | F200: 20 | G200: 1.66 | H200: 0.3 | I200: 9.6 | J200: 54.3 | K200: б/н
D201: закуска | E201: Бутерброд с маслом и сыром | F201: 60 | G201: 7.88 | H201: 9.94 | I201: 20.74 | J201: 207.43 | K201: 800
D202: закуска | E202: Яйцо вареное | F202: 40 | G202: 5.08 | H202: 4.6 | I202: 0.28 | J202: 63 | K202: 803
D206: итого | F206: =SUM(F198:F205) -> 577 | G206: =SUM(G198:G205) -> 22.27 | H206: =SUM(H198:H205) -> 25.559 | I206: =SUM(I198:I205) -> 86.94 | J206: =SUM(J198:J205) -> 674.74 | L206: =SUM(L198:L205) -> 0
A207: 3 | B207: =B198 -> 1 | C207: Обед | D207: напиток | E207: Сок натуральный (порционно) | F207: 200 | G207: 6.25 | H207: 14.09 | I207: 2.29 | J207: 40 | K207: б/н
D208: 1 блюдо | E208: Суп-лапша домашняя | F208: 200 | G208: 2.07 | H208: 4.3 | I208: 10.3 | J208: 88.89 | K208: 109
D209: 2 блюдо | E209: Суфле Рыбка с рисом | F209: 90 | G209: 14.25 | H209: 9.6 | I209: 13.72 | J209: 199.5 | K209: 215
D210: гарнир | E210: Пюре картофельное | F210: 150 | G210: 3.7 | H210: 5.9 | I210: 24 | J210: 166 | K210: 309
D211: напиток | E211: Напиток каркаде | F211: 200 | G211: 0.1 | H211: 0 | I211: 24.2 | J211: 93 | K211: 409
D212: хлеб бел. | E212: Хлеб пшеничный | F212: 40 | G212: 5.08 | H212: 0.8 | I212: 22.16 | J212: 120.6 | K212: б/н
D213: хлеб черн. | E213: Хлеб ржаной | F213: 20 | G213: 1.66 | H213: 0.3 | I213: 9.6 | J213: 54.3 | K213: б/н
D216: итого | F216: =SUM(F207:F215) -> 900 | G216: =SUM(G207:G215) -> 33.11 | H216: =SUM(H207:H215) -> 34.99 | I216: =SUM(I207:I215) -> 106.27 | J216: =SUM(J207:J215) -> 762.29 | L216: =SUM(L207:L215) -> 0
A217: =A198 -> 3 | B217: =B198 -> 1 | C217: Итого за день: | F217: =F206+F216 -> 1477 | G217: =G206+G216 -> 55.38 | H217: =H206+H216 -> 60.549 | I217: =I206+I216 -> 193.21 | J217: =J206+J216 -> 1437.03 | L217: =L206+L216 -> 0
A218: 3 | B218: 2 | C218: Завтрак | D218: гор.блюдо | E218: Плов из курицы | F218: 270 | G218: 22.5 | H218: 34.2 | I218: 47.2 | J218: 528.12 | K218: 228
D219: гор.напиток | E219: Чай с сахаром | F219: 200 | G219: 0.2 | H219: 0 | I219: 15 | J219: 58 | K219: 400
D220: хлеб бел. | E220: Хлеб пшеничный | F220: 20 | G220: 2.54 | H220: 0.4 | I220: 11.08 | J220: 60.3 | K220: б/н
D221: хлеб черн. | E221: Хлеб ржаной | F221: 20 | G221: 1.66 | H221: 0.3 | I221: 9.6 | J221: 54.3 | K221: б/н
D222: напиток | E222: Сок натуральный (порционно) | F222: 200 | G222: 6.25 | H222: 14.09 | I222: 2.29 | J222: 40 | K222: б/н
D225: итого | F225: =SUM(F218:F224) -> 710 | G225: =SUM(G218:G224) -> 33.15 | H225: =SUM(H218:H224) -> 48.99 | I225: =SUM(I218:I224) -> 85.17 | J225: =SUM(J218:J224) -> 740.72 | L225: =SUM(L218:L224) -> 0
A226: 3 | B226: =B218 -> 2 | C226: Обед | D226: закуска | E226: Салат из свеклы "Бурячок" | F226: 100 | G226: 1.05 | H226: 15.07 | I226: 5.77 | J226: 103 | K226: 709
D227: 1 блюдо | E227: Суп картофельный с мясными фрикадельками | F227: 250 | G227: 6.32 | H227: 4.88 | I227: 15.04 | J227: 141.6 | K227: 114
D228: 2 блюдо | E228: Бигус (капуста тушеная с мясом) | F228: 200 | G228: 2.85 | H228: 9.3 | I228: 7.95 | J228: 201 | K228: 223
D229: напиток | E229: Компот из сухофруктов | F229: 200 | G229: 0.22 | H229: 0.02 | I229: 22.21 | J229: 86.05 | K229: 402
D230: хлеб бел. | E230: Хлеб пшеничный | F230: 40 | G230: 5.08 | H230: 0.8 | I230: 22.16 | J230: 120.6 | K230: б/н
D231: хлеб черн. | E231: Хлеб ржаной | F231: 40 | G231: 3.32 | H231: 0.6 | I231: 19.2 | J231: 108.6 | K231: б/н
D235: итого | F235: =SUM(F226:F234) -> 830 | G235: =SUM(G226:G234) -> 18.84 | H235: =SUM(H226:H234) -> 30.67 | I235: =SUM(I226:I234) -> 92.33 | J235: =SUM(J226:J234) -> 760.85 | L235: =SUM(L226:L234) -> 0
A236: =A218 -> 3 | B236: =B218 -> 2 | C236: Итого за день: | F236: =F225+F235 -> 1540 | G236: =G225+G235 -> 51.99 | H236: =H225+H235 -> 79.66 | I236: =I225+I235 -> 177.5 | J236: =J225+J235 -> 1501.57 | L236: =L225+L235 -> 0
A237: 3 | B237: 3 | C237: Завтрак | D237: гор.блюдо | E237: Зразы "Верх-Исетские"+Соус сметанный | F237: =90+30 -> 120 | G237: =26.17+0.42 -> 26.59 | H237: =18.47+1.5 -> 19.97 | I237: =6.24+1.76 -> 8 | J237: =296.1+22.23 -> 318.33 | K237: 217/600
D238: гор.блюдо | E238: Каша гречневая рассыпчатая | F238: 150 | G238: 8.7 | H238: 7.8 | I238: 42.6 | J238: 279 | K238: 301
D239: гор.напиток | E239: Чай с сахаром | F239: 200 | G239: 0.2 | H239: 0.051 | I239: 15.07 | J239: 26.85 | K239: 411
D240: хлеб бел. | E240: Хлеб пшеничный | F240: 20 | G240: 2.54 | H240: 0.4 | I240: 11.08 | J240: 60.3 | K240: б/н
D241: хлеб черн. | E241: Хлеб ржаной | F241: 20 | G241: 1.66 | H241: 0.3 | I241: 9.6 | J241: 54.3 | K241: б/н
D244: итого | F244: =SUM(F237:F243) -> 510 | G244: =SUM(G237:G243) -> 39.69 | H244: =SUM(H237:H243) -> 28.521 | I244: =SUM(I237:I243) -> 86.35 | J244: =SUM(J237:J243) -> 738.78 | L244: =SUM(L237:L243) -> 0
A245: 3 | B245: =B237 -> 3 | C245: Обед | D245: закуска | E245: Винегрет овощной | F245: 60 | G245: 0.8 | H245: 1.4 | I245: 4.3 | J245: 33 | K245: 700
D246: 1 блюдо | E246: Борщ из свежей капусты со сметаной и мясом цыплят | F246: 228 | G246: 1.4 | H246: 4.1 | I246: 9.4 | J246: 100.4 | K246: 110
D247: 2 блюдо | E247: Запеканка картофельная с мясом куры | F247: 210 | G247: 14.14 | H247: 23.27 | I247: 26.33 | J247: 391.17 | K247: 203
D248: напиток | E248: Кисель витаминизированный из концентрата | F248: 200 | G248: 0.24 | H248: 0.144 | I248: 30.42 | J248: 116.86 | K248: 403
D249: хлеб бел. | E249: Хлеб пшеничный | F249: 20 | G249: 2.54 | H249: 0.4 | I249: 11.08 | J249: 60.3 | K249: б/н
D250: хлеб черн. | E250: Хлеб ржаной | F250: 20 | G250: 1.66 | H250: 0.3 | I250: 9.6 | J250: 54.3 | K250: б/н
D254: итого | F254: =SUM(F245:F253) -> 738 | G254: =SUM(G245:G253) -> 20.78 | H254: =SUM(H245:H253) -> 29.614 | I254: =SUM(I245:I253) -> 91.13 | J254: =SUM(J245:J253) -> 756.03 | L254: =SUM(L245:L253) -> 0
A255: =A237 -> 3 | B255: =B237 -> 3 | C255: Итого за день: | F255: =F244+F254 -> 1248 | G255: =G244+G254 -> 60.47 | H255: =H244+H254 -> 58.135 | I255: =I244+I254 -> 177.48 | J255: =J244+J254 -> 1494.81 | L255: =L244+L254 -> 0
A256: 3 | B256: 4 | C256: Завтрак | D256: гор.блюдо | E256: Котлета "Школьная" с соусом томатным | F256: 110 | G256: 16.72 | H256: 9.75 | I256: 11.5 | J256: 200 | K256: 218
D257: гор.блюдо | E257: Пюре картофельное | F257: 150 | G257: 3.7 | H257: 5.9 | I257: 24 | J257: 166 | K257: 309
D258: гор.напиток | E258: Компот из сухофруктов | F258: 200 | G258: 0.22 | H258: 0.02 | I258: 22.21 | J258: 86.05 | K258: 402
D259: хлеб бел. | E259: Хлеб пшеничный | F259: 20 | G259: 2.54 | H259: 0.4 | I259: 11.08 | J259: 60.3 | K259: б/н
D260: хлеб черн. | E260: Хлеб ржаной | F260: 20 | G260: 1.66 | H260: 0.3 | I260: 9.6 | J260: 54.3 | K260: б/н
... 25 more rows
